bitfinex-derivatives/quotes_ETHF0:USTF0_20250106
["timestamp","ask_amount","ask_price","bid_price","bid_amount"]
[1736174085839,2.6922,3647.7,3646.8,3.0186046]
[1736174085840,3.2078,3647.4,3646.8,3.0186046]
[1736174086026,1.19,3647.7,3647.4,0.27428]
[1736174086231,1.19,3647.7,3647.3,0.27429]
[1736174086635,1.46427,3647.7,3647.3,0.27429]
[1736174086828,1.19,3647.7,3646.9,3.2078]
[1736174087132,1.19,3647.7,3647.0,1.20026793]
[1736174087431,1.19,3647.7,3647.4,0.27428]
[1736174087632,1.19,3647.7,3647.0,0.68579]
[1736174087930,1.19,3647.7,3647.3,3.2078]
[1736174088134,1.19,3647.7,3647.6,0.27427]
[1736174088531,1.19,3647.7,3646.8,6.2264046]
[1736174088734,1.19,3647.7,3646.9,40.8]
[1736174088928,1.19,3647.7,3647.5,0.27428]
[1736174089233,1.19,3647.7,3646.9,41.48581]
[1736174089234,3.2078,3647.8,3647.2,3.2078]
[1736174089436,3.2078,3648.3,3647.2,3.2078]
[1736174089738,0.27426,3647.8,3647.5,0.27427]
[1736174090135,0.27428,3647.6,3647.3,0.27429]
[1736174090326,1.19,3648.2,3647.1,4.24413891]
[1736174090327,0.2743,3647.2,3647.1,4.24413891]
[1736174090531,0.68569,3647.6,3647.0,6.38370644]
[1736174090733,0.27431,3647.1,3647.0,6.38370644]
[1736174091039,0.7324,3647.7,3647.0,6.38370644]
[1736174091040,1.19,3647.3,3647.0,6.38370644]
[1736174091236,1.19,3647.3,3647.0,6.65801644]
[1736174091433,1.19,3647.3,3647.0,6.38370644]
[1736174091630,1.19,3647.3,3646.9,41.07432]
[1736174091833,0.2743,3647.2,3646.9,41.07432]
[1736174092035,0.27431,3647.1,3646.9,40.8]
[1736174092236,1.19,3647.3,3646.9,40.8]
[1736174092738,0.27432,3647.0,3646.9,40.8]
[1736174093437,3.2078,3647.1,3646.9,40.8]
[1736174093639,1.19,3647.0,3646.9,40.8]
[1736174093840,3.2078,3647.1,3646.9,41.40825756]
[1736174094045,1.19,3647.2,3647.0,0.60824756]
[1736174094336,0.27427,3647.7,3647.3,0.27429]
[1736174094539,1.19,3647.7,3647.5,0.27427]
[1736174094739,0.27426,3647.8,3647.6,0.33393756]
[1736174095043,1.19,3647.9,3647.7,41.13393756]
[1736174095240,1.46425,3647.9,3647.8,0.33393756]
[1736174096340,0.27425,3647.9,3647.8,0.33393756]
[1736174096841,1.19,3648.1,3647.8,0.33393756]
[1736174096842,1.19,3648.1,3647.9,0.27424]
[1736174097042,1.46423,3648.1,3648.0,41.13393756]
[1736174097439,0.27423,3648.1,3648.0,41.13393756]
[1736174097639,0.27423,3648.1,3648.0,0.33393756]
[1736174099539,1.46423,3648.1,3648.0,0.33393756]
[1736174099844,1.46424,3648.1,3648.0,0.33381245]
[1736174100047,0.27424,3648.1,3648.0,0.33381245]
[1736174100236,0.27423,3648.1,3648.0,0.33385989]
[1736174100436,3.2078,3649.1,3648.0,3.54165989]
[1736174100641,3.2078,3649.1,3648.4,2.59905249]
[1736174100844,3.2078,3649.1,3648.5,1.60781218]
[1736174101145,0.27419,3648.7,3648.6,43.60776236]
[1736174101646,0.27419,3648.7,3648.6,2.47390247]
[1736174101938,3.48199,3648.7,3648.6,1.19995018]
[1736174102138,3.48199,3648.7,3647.6,4.27985421]
[1736174102139,4.903,3648.6,3648.1,4.27985421]
[1736174102345,3.48203,3648.2,3648.1,4.27985421]
[1736174102745,2.00740106,3648.2,3648.1,4.90951329]
[1736174103346,7.00740106,3648.2,3648.1,4.90951329]
[1736174103640,2.00740106,3648.2,3648.1,0.6298007]
[1736174103846,11.63617106,3648.2,3647.4,4.27985421]
[1736174104047,2.86477176,3647.5,3647.4,4.27985421]
[1736174104239,3.55987408,3647.5,3647.4,5.24020778]
[1736174104437,1.189,3647.5,3647.4,7.55539433]
[1736174104639,1.189,3647.5,3647.4,11.0776506]
[1736174104849,1.46328,3647.5,3647.4,6.79779639]
[1736174105043,4.903,3648.1,3647.4,6.79779639]
[1736174105346,1.189,3648.2,3647.5,1.27480984]
[1736174105541,0.27423,3648.1,3647.6,1.27480984]
[1736174105745,1.189,3648.2,3647.4,3.48208]
[1736174105746,1.189,3648.2,3647.7,44.38999639]
[1736174105940,0.27425,3647.9,3647.8,1.27480984]
[1736174106149,1.46325,3647.9,3647.8,2.90401519]
[1736174107045,1.189,3647.9,3647.8,2.90401519]
[1736174107252,1.46325,3647.9,3647.8,2.90401519]
[1736174107839,1.46325,3647.9,3647.8,1.94366162]
[1736174108446,12.6865165,3647.9,3647.8,0.19402162]
[1736174108650,12.6865165,3647.9,3647.3,4.27985421]
[1736174108651,0.27429,3647.4,3647.3,4.27985421]
[1736174108856,3.48209,3647.4,3647.3,4.56980853]
[1736174109150,8.48209,3647.4,3647.3,1.74409853]
[1736174109345,0.27429,3647.3,3647.2,4.84657497]
[1736174109650,0.27429,3647.3,3647.2,3.89408497]
[1736174109848,5.27429,3647.3,3647.2,2.60269497]
[1736174110152,0.27438,3646.2,3646.1,1.74128497]
[1736174110448,4.67118,3646.2,3646.1,2.70198937]
[1736174110639,4.67118,3646.2,3646.1,1.74128497]
[1736174110839,9.67118,3646.2,3646.1,1.74128497]
[1736174111146,9.67118,3646.2,3646.1,4.97e-06]
[1736174111546,0.68606,3645.6,3644.3,8.78612858]
[1736174111743,0.27447,3645.0,3644.9,0.96093518]
[1736174111944,1.46347,3645.0,3644.9,0.96093518]
[1736174112152,1.189,3645.0,3644.9,0.96093518]
[1736174112449,1.46347,3645.0,3644.9,0.96093518]
[1736174112642,1.189,3645.0,3644.3,8.51160858]
[1736174112847,1.189,3645.0,3644.2,3.9522]
[1736174113048,0.27452,3644.4,3644.2,3.2078]
[1736174113245,1.189,3645.0,3644.2,3.2078]
[1736174113948,0.27449,3644.8,3644.3,0.96107413]
[1736174114144,1.189,3645.0,3644.2,3.2078]
[1736174114351,0.2745,3644.6,3644.2,3.2078]
[1736174114546,0.27451,3644.5,3644.2,3.2078]
[1736174114748,1.189,3645.0,3644.2,3.2078]
[1736174114948,3.2078,3645.1,3644.7,0.27449]
[1736174115149,1.19,3645.2,3644.8,0.96088561]
[1736174115346,1.19,3645.2,3644.9,0.7525]
[1736174115748,1.46445,3645.2,3645.1,40.8]
[1736174116355,1.19,3645.6,3645.3,0.27444]
[1736174116560,1.19,3645.6,3645.2,1.02035]
[1736174116755,1.19,3645.6,3645.5,40.8]
[1736174116951,0.27442,3645.6,3645.5,40.8]
[1736174117256,1.46442,3645.6,3645.5,40.8]
[1736174117449,0.27446,3645.1,3644.7,3.2078]
[1736174117646,1.19,3645.6,3644.8,0.27448]
[1736174117955,1.19,3645.6,3644.7,3.2078]
[1736174117956,1.19,3645.6,3644.9,40.8]
[1736174118150,0.27445,3645.3,3644.9,40.8]
[1736174118350,0.27449,3644.7,3644.4,0.7525]
[1736174118550,1.19,3644.8,3644.5,1.27664717]
[1736174118751,1.46449,3644.7,3644.6,0.31573945]
[1736174119255,0.27453,3644.1,3644.0,0.7459]
[1736174119457,0.27453,3644.3,3644.0,1.07391078]
[1736174119657,0.27453,3644.3,3644.1,0.32801078]
[1736174119855,1.19,3644.7,3644.2,2.18163756]
[1736174120055,1.19,3644.7,3644.0,0.7459]
[1736174120362,0.27453,3644.2,3644.1,1.22033164]
[1736174120564,0.27453,3644.2,3644.1,0.8925233]
[1736174121462,0.27453,3644.2,3644.1,0.99895183]
[1736174121963,0.27453,3644.2,3644.1,0.44970074]
[1736174123252,5.27453,3644.2,3644.1,7.4e-07]
[1736174123965,5.27453,3644.2,3643.2,0.7639]
[1736174123966,0.2746,3643.3,3643.2,0.7639]
[1736174124261,0.2746,3643.3,3642.5,0.7113]
[1736174124262,4.3978,3643.3,3642.5,0.7113]
[1736174124461,0.27464,3642.7,3642.6,0.31071164]
[1736174124760,0.27465,3642.6,3642.5,0.7113]
[1736174124963,0.27465,3642.6,3642.5,2.2208506]
[1736174125163,0.27465,3642.6,3642.5,0.54822678]
[1736174125364,5.27465,3642.6,3642.5,0.54822678]
[1736174125566,10.17765,3642.6,3642.5,9.57e-06]
[1736174126066,10.17765,3642.6,3641.5,0.7767]
[1736174126067,0.27471,3641.8,3641.5,0.7767]
[1736174126258,1.19,3641.7,3641.5,0.7767]
[1736174126457,1.19,3641.7,3641.6,0.42937901]
[1736174127265,1.46472,3641.7,3641.6,0.42937901]
[1736174127971,6.46472,3641.7,3641.6,9.01e-06]
[1736174128165,11.36772,3641.7,3641.6,9.01e-06]
[1736174129062,18.09633023,3641.7,3641.6,9.01e-06]
[1736174129364,0.27485,3640.0,3639.7,3.2078]
[1736174129565,1.191,3639.9,3639.5,0.7214]
[1736174129761,1.207,3639.8,3639.5,0.7214]
[1736174130457,4.903,3640.7,3640.0,0.27484]
[1736174130765,1.207,3640.6,3640.1,3.2078]
[1736174130964,1.207,3640.6,3640.2,0.7764]
[1736174131667,0.0385,3640.6,3640.3,1.02552]
[1736174131969,8.1108,3642.2,3640.5,3.2078]
[1736174132168,6.11,3642.1,3641.1,3.2078]
[1736174132374,0.27472,3641.7,3640.7,3.2078]
[1736174132564,3.2078,3641.4,3640.3,3.9585]
[1736174132765,0.27481,3640.4,3640.3,3.9585]
[1736174132960,4.4148,3640.4,3639.2,3.2078]
[1736174133164,4.4148,3640.4,3639.3,0.32417647]
[1736174133363,8.759,3640.4,3639.4,40.8]
[1736174133862,0.27483,3640.2,3639.6,3.2078]
[1736174134267,1.207,3640.3,3639.4,40.8]
[1736174134474,0.27485,3640.0,3639.4,41.07489]
[1736174134669,0.27485,3640.0,3639.4,40.8]
[1736174134867,3.2078,3640.0,3639.3,0.7538]
[1736174135067,1.207,3640.3,3639.3,0.7538]
[1736174135270,0.27488,3639.6,3639.4,0.45074681]
[1736174135486,1.207,3639.5,3639.3,0.7538]
[1736174135789,1.207,3639.4,3639.3,0.7538]
[1736174135980,1.207,3639.4,3639.3,1.64559345]
[1736174136180,1.48189,3639.4,3639.3,1.64559345]
[1736174137088,1.48189,3639.4,3639.3,0.89179345]
[1736174137284,6.48189,3639.4,3639.3,0.89179345]
[1736174137486,6.48189,3639.4,3639.3,0.89207048]
[1736174137791,1.48189,3639.4,3639.3,0.89207048]
[1736174138087,1.48189,3639.4,3639.3,1.17646654]
[1736174139688,6.38489,3639.4,3639.3,1.17646654]
[1736174139883,11.38489,3639.4,3639.3,0.62729721]
[1736174140085,6.38489,3639.4,3639.3,0.34323083]
[1736174140389,5.76608636,3639.4,3639.3,1.03079043]
[1736174140589,5.76608636,3639.4,3639.3,1.01698694]
[1736174140893,5.17789,3639.4,3639.3,1.01698694]
[1736174141095,3.2078,3639.6,3639.3,1.12555631]
[1736174141392,1.48288,3639.5,3639.4,0.43799671]
[1736174141592,1.48288,3639.5,3639.4,42.35523096]
[1736174142092,0.34861824,3639.5,3639.4,42.87788571]
[1736174142386,3.2078,3640.0,3639.4,41.76065146]
[1736174142590,1.208,3640.0,3639.9,3.2078]
[1736174142781,1e-08,3640.0,3639.9,4.44330146]
[1736174142987,1.208,3640.4,3640.2,0.27482]
[1736174143187,1.208,3640.4,3640.3,4.65220012]
[1736174143381,1.208,3640.4,3640.3,3.66149422]
[1736174143586,1.208,3640.4,3640.3,4.38744028]
[1736174144090,1.208,3640.4,3640.3,1.17964028]
[1736174144294,1.208,3640.4,3640.3,1.51021476]
[1736174144682,1.48281,3640.4,3640.3,1.51021476]
[1736174144893,1.208,3640.4,3640.3,1.51021476]
[1736174145093,1.208,3640.4,3640.3,2.29288694]
[1736174145289,1.48281,3640.4,3640.3,1.33072738]
[1736174145596,1.48281,3640.4,3640.3,2.29315832]
[1736174145885,1.48281,3640.4,3640.3,1.00360391]
[1736174146492,1.48281,3640.4,3640.3,1.00249737]
[1736174146988,6.48281,3640.4,3640.3,1.00265952]
[1736174147188,1.48281,3640.4,3640.3,1.00265952]
[1736174147388,6.48281,3640.4,3640.3,1.00265952]
[1736174147591,1.48281,3640.4,3640.3,1.00265952]
[1736174147792,0.27492,3639.0,3638.9,3.2078]
[1736174147994,1.29209614,3639.0,3638.9,3.53593001]
[1736174148391,0.27495,3638.7,3638.3,3.2078]
[1736174148686,0.27495,3638.7,3638.4,1.52324313]
[1736174148891,0.27495,3638.6,3638.5,0.32003296]
[1736174149089,3.2078,3638.8,3638.3,3.2078]
[1736174149291,0.27496,3638.4,3638.3,3.2078]
[1736174149595,0.27496,3638.5,3638.3,3.2078]
[1736174149792,3.2078,3638.8,3638.3,3.2078]
[1736174149993,0.27496,3638.5,3638.3,3.2078]
[1736174150397,0.27496,3638.4,3638.3,3.2078]
[1736174150587,0.27499,3638.1,3638.0,1.494]
[1736174150791,1.48299,3638.1,3638.0,1.494]
[1736174150992,1.48299,3638.1,3627.5,0.49379943]
[1736174150993,4.2234665,3638.1,3637.2,3.2078]
[1736174151492,0.275,3638.0,3637.2,3.48285]
[1736174151691,0.27502,3637.7,3637.2,3.48285]
[1736174151892,1.208,3637.6,3637.3,1.20358169]
[1736174152093,0.27501,3637.9,3637.4,0.3207524]
[1736174152285,4.903,3638.3,3637.5,0.3207524]
[1736174152286,1.48301,3637.8,3637.5,0.3207524]
[1736174152491,0.34832724,3637.8,3637.6,2.22915064]
[1736174152693,1.208,3638.0,3637.7,1.95413064]
[1736174152896,1.208,3638.0,3637.8,0.3207524]
[1736174153096,1.208,3638.0,3637.9,1.95413064]
[1736174154298,1.483,3638.0,3637.9,1.95413064]
[1736174154495,1.483,3638.0,3637.9,1.52429426]
[1736174155100,1.208,3638.0,3637.4,3.9285]
[1736174155402,0.27501,3637.8,3637.5,1.51693399]
[1736174155598,0.27502,3637.7,3637.6,1.51693399]
[1736174157300,3.48277,3638.4,3637.9,0.275]
[1736174157600,0.27499,3638.1,3638.0,2.27123399]
[1736174157796,1.48299,3638.1,3638.0,2.27123399]
[1736174157993,1.48299,3638.1,3638.0,1.20355975]
[1736174158302,0.27503,3637.5,3637.4,0.7207]
[1736174158698,0.27503,3637.5,3637.4,1.03460791]
[1736174158898,0.27503,3637.5,3637.4,1.5176188]
[1736174159102,1.208,3638.1,3637.4,2.48051131]
[1736174159300,1.208,3638.1,3637.5,2.48051131]
[1736174159604,0.27501,3637.9,3637.6,2.48051131]
[1736174159804,1.201,3638.0,3637.7,1.61591071]
[1736174160006,0.27501,3637.9,3637.8,1.61591071]
[1736174160199,0.27501,3637.9,3637.8,2.48051131]
[1736174160499,0.27501,3637.9,3637.8,1.27680042]
[1736174161100,1.201,3638.0,3637.9,0.275]
[1736174161298,0.27497,3638.4,3637.9,0.275]
[1736174161502,3.2078,3638.1,3637.2,41.5029]
[1736174161805,0.27504,3637.4,3637.2,41.5029]
[1736174162008,1.201,3637.3,3637.2,0.7029]
[1736174162202,1.201,3637.3,3637.2,0.81238576]
[1736174162404,1.47605,3637.3,3637.2,0.81238576]
[1736174162605,1.47605,3637.3,3637.2,0.10948576]
[1736174162797,6.47605,3637.3,3637.2,5.76e-06]
[1736174163205,4.903,3637.2,3636.1,0.716]
[1736174163505,3.2078,3636.4,3635.3,3.2078]
[1736174163703,0.27519,3635.4,3635.3,3.2078]
[1736174163905,0.27519,3635.4,3634.8,0.7029]
[1736174163906,1.201,3635.4,3634.8,0.7029]
[1736174164111,3.2078,3635.2,3634.5,0.7282]
[1736174164702,3.2078,3635.2,3634.2,3.2078]
[1736174164703,0.27527,3634.4,3634.2,3.2078]
[1736174165013,1.47627,3634.4,3634.0,10.54825665]
[1736174165207,9.68407,3634.4,3634.0,10.54825665]
[1736174165407,0.27534,3633.5,3633.4,3.2078]
[1736174165612,1.201,3633.5,3633.4,3.2078]
[1736174165806,1.201,3634.0,3633.7,0.27531]
[1736174166006,1.201,3634.0,3633.9,0.27531]
[1736174166301,3.2078,3634.8,3633.8,3.2078]
[1736174166302,1.201,3634.8,3633.8,3.2078]
[1736174166606,1.201,3634.8,3634.1,3.2078]
[1736174166806,3.2078,3634.4,3633.7,3.2078]
[1736174167011,3.0154665,3634.5,3633.7,3.2078]
[1736174167210,0.27528,3634.3,3633.9,3.2078]
[1736174167705,4.4088,3634.8,3633.9,3.2078]
[1736174167907,0.2753,3634.1,3633.5,44.28314]
[1736174168210,1.201,3634.0,3633.5,44.0078]
[1736174168406,1.201,3633.9,3633.5,40.8]
[1736174168605,0.27532,3633.7,3633.3,3.9424]
[1736174168809,1.201,3633.6,3633.3,3.9424]
[1736174169013,1.201,3633.5,3633.4,40.8]
[1736174169406,1.201,3633.5,3633.3,3.9424]
[1736174170010,1.201,3633.5,3633.4,40.8]
[1736174171715,1.47734,3633.5,3633.4,40.8]
[1736174172308,1.202,3633.5,3633.3,3.2078]
[1736174172612,1.47734,3633.5,3633.3,3.2078]
[1736174173111,1.202,3633.5,3633.3,3.2078]
[1736174173716,3.0154665,3634.5,3633.3,3.2078]
[1736174173911,0.27531,3633.9,3633.4,0.27534]
[1736174174111,1.202,3633.8,3633.7,3.2078]
[1736174174318,1.202,3633.9,3633.7,3.2078]
[1736174175219,1.202,3633.9,3633.4,0.7415]
[1736174175718,0.27531,3633.8,3633.5,40.8]
[1736174176016,3.7036365,3634.5,3633.4,0.7415]
[1736174176213,0.2753,3634.0,3633.5,0.27534]
[1736174176412,0.27529,3634.1,3633.7,3.2078]
[1736174176606,3.2078,3634.6,3633.7,3.2078]
[1736174176924,6.27879,3636.0,3633.6,40.8]
[1736174176925,1.202,3635.1,3634.5,3.2078]
[1736174177107,1.202,3635.1,3634.0,3.7037165]
[1736174177108,0.27522,3635.0,3634.9,3.2078]
[1736174177308,0.27524,3634.7,3634.6,1.464]
[1736174177618,1.202,3635.1,3634.6,1.464]
[1736174177816,1.202,3635.1,3634.9,3.2078]
[1736174179018,1.202,3635.1,3635.0,0.98312]
[1736174179218,3.2078,3636.2,3635.0,0.7079]
[1736174179521,0.27519,3635.4,3635.3,3.2078]
[1736174180112,3.2078,3635.4,3635.0,0.7079]
[1736174180312,0.27525,3634.6,3634.5,3.2078]
[1736174180517,0.68802,3635.2,3634.6,0.27525]
[1736174180518,0.27521,3635.2,3634.6,0.27525]
[1736174180821,0.27521,3635.2,3634.8,3.2078]
[1736174181020,1.202,3635.3,3634.8,3.2078]
[1736174181218,1.202,3635.3,3634.4,3.2078]
[1736174181524,0.27527,3634.4,3633.8,3.9157]
[1736174181822,0.27527,3634.4,3632.5,3.7039865]
[1736174181823,3.2078,3634.0,3633.2,3.2078]
[1736174182124,0.27532,3633.8,3633.3,0.27535]
[1736174182315,0.27532,3633.7,3633.2,3.48316]
[1736174182509,0.27533,3633.6,3633.1,0.27536]
[1736174182713,1.202,3633.5,3632.9,1.3578]
[1736174182913,0.27535,3633.4,3633.0,0.27537]
[1736174183113,1.202,3633.5,3632.9,1.3578]
[1736174183314,0.27536,3633.2,3632.9,1.3578]
[1736174183518,1.202,3633.5,3632.9,1.3578]
[1736174183715,0.27537,3633.1,3632.9,1.3578]
[1736174183922,1.202,3633.5,3632.8,3.2078]
[1736174184226,0.27538,3632.9,3632.8,3.2078]
[1736174184423,3.2078,3633.0,3632.3,0.735]
[1736174184626,3.2078,3633.0,3632.3,1.01042]
[1736174185130,0.27538,3632.9,3632.5,0.27541]
[1736174185426,0.27539,3632.9,3632.5,0.27541]
[1736174185724,3.2078,3633.0,3632.5,0.27541]
[1736174185725,3.2078,3633.0,3632.5,40.8]
[1736174185919,1.202,3633.5,3632.8,3.2078]
[1736174186517,1.202,3633.5,3632.6,0.6885]
[1736174186518,1.202,3633.5,3633.4,3.48314]
[1736174187121,7.569,3634.2,3634.1,0.27529]
[1736174187320,0.27529,3634.2,3634.0,0.2753]
[1736174187520,1.202,3634.3,3634.2,0.27528]
[1736174187725,1.202,3634.3,3633.9,3.2078]
[1736174187726,1.202,3634.3,3634.1,0.27529]
[1736174188020,1.202,3634.3,3633.9,3.2078]
[1736174188021,0.27527,3634.4,3634.2,0.27528]
[1736174188320,1.202,3634.4,3633.9,3.2078]
[1736174188618,1.202,3634.4,3634.0,0.27529]
[1736174188619,0.27529,3634.2,3634.0,0.27529]
[1736174189024,1.202,3634.4,3633.6,40.8]
[1736174189025,0.2753,3634.0,3633.8,0.27531]
[1736174189322,1.47727,3634.4,3633.9,3.2078]
[1736174189519,1.47727,3634.4,3634.2,0.27528]
[1736174189721,3.2078,3634.9,3633.9,3.2078]
[1736174189923,3.2078,3634.9,3634.6,0.27525]
[1736174189924,0.27524,3634.8,3634.6,0.27525]
[1736174190118,7.57,3635.6,3634.4,0.68817]
[1736174190319,0.27519,3635.4,3635.2,0.2752]
[1736174190520,0.2752,3635.4,3635.2,0.2752]
[1736174190723,1.212,3635.5,3634.7,3.9395]
[1736174190922,0.27521,3635.2,3634.9,0.27522]
[1736174191120,0.27519,3635.4,3634.9,0.27523]
[1736174191321,1.212,3635.5,3634.7,3.9395]
[1736174191526,0.2752,3635.3,3635.0,0.27522]
[1736174191823,0.27524,3634.8,3634.7,0.7317]
[1736174192020,0.27523,3635.0,3634.7,1.00694]
[1736174192421,3.2078,3635.4,3634.7,1.00694]
[1736174192621,0.27523,3635.0,3634.8,0.27524]
[1736174192820,1.212,3635.5,3634.7,3.9395]
[1736174193018,0.27519,3635.4,3634.8,0.27524]
[1736174193219,0.27519,3635.4,3635.0,0.27522]
[1736174193527,1.212,3635.6,3635.1,3.2078]
[1736174194129,1.212,3636.2,3635.1,3.2078]
[1736174194429,1.212,3636.2,3635.2,42.00413747]
[1736174194642,3.2078,3635.4,3634.7,0.7317]
[1736174194821,3.2078,3635.4,3634.6,3.2078]
[1736174194822,1.212,3635.3,3634.6,3.2078]
[1736174195026,0.27524,3634.7,3634.6,3.2078]
[1736174195226,1.212,3635.3,3634.6,3.2078]
[1736174195426,3.2078,3635.0,3634.3,0.27527]
[1736174195738,0.27527,3634.5,3634.0,3.2078]
[1736174196025,0.27527,3634.4,3633.9,0.9959]
[1736174196226,0.2753,3634.1,3633.8,7.38919306]
[1736174196432,0.2753,3634.1,3633.8,7.11388306]
[1736174196627,0.2753,3634.1,3633.8,0.7281]
[1736174196820,0.27529,3634.1,3633.8,0.7281]
[1736174197029,0.27529,3634.1,3633.8,1.00341]
[1736174197331,0.27527,3634.4,3633.9,0.27531]
[1736174197528,0.27526,3634.5,3634.2,0.27528]
[1736174197724,4.4198,3634.6,3633.8,0.7281]
[1736174197924,0.7483,3636.0,3633.8,0.7281]
[1736174197925,1.212,3634.8,3634.7,0.27524]
[1736174198325,3.2078,3635.4,3634.6,0.7257]
[1736174198633,3.483,3635.4,3634.6,0.7257]
[1736174198830,0.2752,3635.3,3635.1,0.27521]
[1736174199032,0.6879,3635.9,3634.7,40.8]
[1736174199033,3.2078,3635.9,3634.7,40.8]
[1736174199241,3.2078,3635.5,3634.7,40.8]
[1736174199726,0.27519,3635.4,3635.2,0.27521]
[1736174200437,1.212,3635.8,3635.0,3.2078]
[1736174200625,1.212,3635.8,3635.2,0.27521]
[1736174200626,0.27517,3635.7,3635.2,0.27521]
[1736174200932,1.212,3635.8,3635.2,0.72]
[1736174201132,0.27518,3635.6,3635.5,0.27518]
[1736174201330,1.212,3635.8,3635.4,0.27519]
[1736174201530,0.27518,3635.6,3635.4,0.27519]
[1736174201827,0.27521,3635.2,3635.1,1.01251]
[1736174202336,3.2078,3635.4,3634.2,3.2078]
[1736174202531,0.68801,3635.3,3634.3,0.7373]
[1736174202725,0.68801,3635.3,3634.6,3.9335]
[1736174202726,0.27524,3634.7,3634.6,3.9335]
[1736174202936,0.68801,3635.3,3634.7,0.27524]
[1736174202937,0.27524,3634.8,3634.7,0.27524]
[1736174203230,0.27524,3634.7,3634.6,3.9335]
[1736174203429,0.27524,3634.7,3634.6,4.20875]
[1736174203731,3.2078,3635.4,3634.6,3.9335]
[1736174203933,4.4198,3635.4,3634.6,3.9335]
[1736174204234,1.212,3635.3,3634.6,3.9335]
[1736174204432,0.27521,3635.2,3634.6,3.9335]
[1736174204636,0.27521,3635.2,3634.7,0.27524]
[1736174204837,1.212,3635.3,3635.2,0.27521]
[1736174205032,3.2078,3635.8,3635.1,0.27521]
[1736174205033,0.27521,3635.2,3635.1,0.27521]
[1736174205230,0.2752,3635.3,3634.6,3.9335]
[1736174205431,0.2752,3635.3,3635.2,0.27521]
[1736174205631,1.212,3635.5,3634.6,3.9335]
[1736174206033,0.2752,3635.3,3635.2,0.2752]
[1736174206234,1.212,3635.5,3635.4,0.27519]
[1736174206235,1.48719,3635.5,3635.4,0.27519]
[1736174206435,1.212,3635.5,3635.0,3.2078]
[1736174206739,1.212,3635.5,3635.4,3.2078]
[1736174206938,3.2078,3636.6,3635.5,0.68796]
[1736174207135,3.2078,3636.6,3636.3,0.27512]
[1736174207136,1.212,3636.4,3636.3,0.27512]
[1736174207332,2.113828,3637.5,3636.4,0.6878]
[1736174207540,2.113828,3637.5,3637.0,3.48287]
[1736174207541,0.27506,3637.2,3637.0,3.48287]
[1736174207730,3.325828,3637.5,3636.6,0.7324]
[1736174207934,0.68763,3637.3,3636.6,0.2751]
[1736174208130,0.68763,3637.3,3636.5,0.7354]
[1736174208131,1.212,3637.2,3636.5,0.7354]
[1736174208349,0.27511,3636.5,3636.4,3.2078]
[1736174208531,1.212,3637.2,3636.4,3.2078]
[1736174209140,0.2751,3636.7,3636.4,3.48291]
[1736174209342,0.27509,3636.9,3636.4,3.2078]
[1736174209642,0.2751,3636.7,3636.4,3.2078]
[1736174209836,1.212,3637.2,3636.4,3.2078]
[1736174210033,0.27511,3636.5,3636.4,3.2078]
[1736174210635,0.68767,3637.1,3636.4,3.2078]
[1736174210839,1.212,3637.2,3636.4,3.2078]
[1736174211243,0.27508,3637.0,3636.7,0.27509]
[1736174211540,3.2078,3637.4,3637.1,0.27506]
[1736174211733,3.2078,3637.4,3636.8,3.2078]
[1736174211938,0.27504,3637.5,3637.2,0.27505]
[1736174212143,0.27507,3637.1,3636.9,0.27507]
[1736174212340,0.27505,3637.3,3636.8,3.2078]
[1736174212641,0.27508,3636.9,3636.8,3.2078]
[1736174212839,0.68764,3637.3,3636.6,0.7312]
[1736174213143,0.2751,3636.6,3636.5,0.7005]
[1736174213338,4.4198,3636.7,3635.8,0.7535]
[1736174213539,0.27518,3635.6,3635.5,3.2078]
[1736174213737,1.212,3635.6,3634.8,1.5061]
[1736174213938,0.27523,3634.9,3634.8,0.7535]
[1736174215839,0.27523,3634.9,3634.3,0.7526]
[1736174215840,3.89589,3634.9,3634.3,8.58832165]
[1736174216036,3.2078,3634.5,3634.3,8.58832165]
[1736174216243,0.27527,3634.4,3634.3,8.58832165]
[1736174217139,3.2078,3634.5,3633.7,7.17212775]
[1736174217338,0.27528,3634.3,3633.9,0.2753]
[1736174217538,0.27528,3634.3,3633.8,0.27531]
[1736174217736,3.2078,3634.5,3633.7,7.17212775]
[1736174217937,0.27527,3634.4,3634.0,0.27529]
[1736174218142,3.2078,3634.5,3633.7,7.44744775]
[1736174218349,3.2078,3634.5,3633.7,7.17212775]
[1736174218745,1.4351,3635.3,3634.5,0.27526]
[1736174218746,3.48303,3634.9,3634.5,0.27526]
[1736174218948,0.27524,3634.8,3633.9,0.68827]
[1736174219247,3.2078,3634.9,3634.6,40.8]
[1736174219443,0.27524,3634.8,3634.6,40.8]
[1736174219747,3.2078,3634.9,3634.6,40.8]
[1736174220147,0.27524,3634.8,3634.6,40.8]
[1736174220345,0.27524,3634.7,3634.6,40.8]
[1736174220749,3.2078,3634.9,3633.7,10.37992775]
[1736174221144,0.27528,3634.3,3634.0,0.2753]
[1736174221340,1.211,3634.4,3633.8,40.8]
[1736174221550,0.27531,3633.8,3633.7,3.9351]
[1736174222454,0.27532,3633.7,3633.6,40.8]
[1736174223455,3.2078,3634.0,3633.1,3.2078]
[1736174223660,0.27536,3633.2,3633.0,6.44482775]
[1736174223854,4.69417,3633.1,3633.0,6.44482775]
[1736174224057,7.7096365,3633.1,3633.0,6.44482775]